lending/lending_fUSD_20250808
["ID","MTS","AMOUNT","RATE_DAILY","PERIOD"]
[377931745,1754614259421,-636.33,0.00022191,2]
[377931746,1754614259430,-400.0,0.00022191,2]
[377931747,1754614259439,-400.0,0.00022191,2]
[377931748,1754614259449,-1301.51,0.00022191,2]
[377931749,1754614259459,-501.71,0.00022191,2]
[377931750,1754614259468,-400.0,0.00022191,2]
[377931751,1754614259478,-400.0,0.00022191,2]
[377931752,1754614259488,-400.0,0.00022191,2]
[377931753,1754614259497,-400.0,0.00022191,2]
[377931754,1754614259506,-1160.41,0.00022191,2]
[377931755,1754614259517,-502.75,0.00022191,2]
[377931756,1754614259526,-366.81545681,0.00022191,2]
[377931757,1754614259535,-648.77,0.00022191,2]
[377931758,1754614259545,-400.0,0.00022191,2]
[377931759,1754614259554,-1559.58,0.00022191,2]
[377931760,1754614259563,-1110.84,0.00022191,2]
[377931761,1754614259573,-1082.24,0.00022191,2]
[377931762,1754614259583,-672.61,0.00022191,2]
[377931763,1754614259592,-738.48,0.00022191,2]
[377931764,1754614259602,-400.0,0.00022191,2]
[377931765,1754614259611,-2850.84,0.00022191,2]
[377931766,1754614259621,-1783.35,0.00022191,2]
[377931767,1754614259630,-819.83,0.00022191,2]
[377931768,1754614259639,-1144.25,0.00022191,2]
[377931769,1754614259649,-400.0,0.00022191,2]
[377931770,1754614259658,-400.0,0.00022191,2]
[377931771,1754614259667,-1207.97,0.00022191,2]
[377931772,1754614259677,-774.82,0.00022191,2]
[377931773,1754614259687,-400.0,0.00022191,2]
[377931774,1754614259696,-400.0,0.00022191,2]
[377931775,1754614259705,-400.0,0.00022191,2]
[377931776,1754614259715,-637.04,0.00022191,2]
[377931777,1754614259724,-809.38,0.00022191,2]
[377931778,1754614259733,-1872.75,0.00022191,2]
[377931779,1754614259743,-739.13,0.00022191,2]
[377931780,1754614259752,-518.6,0.00022191,2]
[377931781,1754614259761,-3096.84,0.00022191,2]
[377931782,1754614259770,-688.92,0.00022191,2]
[377931783,1754614259780,-724.63,0.00022191,2]
[377931784,1754614259789,-400.0,0.00022191,2]
[377931785,1754614259798,-400.0,0.00022191,2]
[377931786,1754614259809,-380.98995474,0.00022191,2]
[377931787,1754614259818,-1838.62,0.00022191,2]
[377931788,1754614259828,-2478.01,0.00022191,2]
[377931789,1754614259837,-717.49,0.00022191,2]
[377931790,1754614259847,-791.17,0.00022191,2]
[377931791,1754614259856,-453.61,0.00022191,2]
[377931792,1754614259866,-743.0,0.00022191,2]
[377931793,1754614259876,-2279.55,0.00022191,2]
[377931794,1754614259885,-833.52,0.00022191,2]
[377931795,1754614259894,-1092.65,0.00022191,2]
[377931796,1754614259905,-180.18600279,0.00022191,2]
[377931797,1754614259915,-633.66,0.00022191,2]
[377931798,1754614259925,-1210.68,0.00022191,2]
[377931799,1754614259934,-900.29,0.00022191,2]
[377931800,1754614259945,-757.08,0.00022191,2]
[377931801,1754614259955,-400.0,0.00022191,2]
[377931802,1754614259965,-400.0,0.00022191,2]
[377931803,1754614259975,-602.93,0.00022191,2]
[377931804,1754614259984,-400.0,0.00022191,2]
[377931805,1754614259994,-1933.78,0.00022191,2]
[377931806,1754614260003,-541.11,0.00022191,2]
[377931807,1754614260014,-411.24,0.00022191,2]
[377931808,1754614260024,-400.0,0.00022191,2]
[377931809,1754614260034,-525.5584198,0.00022191,2]
[377931810,1754614260044,-400.0,0.00022191,2]
[377931811,1754614260055,-2866.87,0.00022191,2]
[377931812,1754614260065,-1218.55,0.00022191,2]
[377931813,1754614260075,-400.0,0.00022191,2]
[377931814,1754614260086,-400.0,0.00022191,2]
[377931815,1754614260096,-1023.23,0.00022191,2]
[377931816,1754614260106,-400.0,0.00022191,2]
[377931817,1754614260116,-995.05,0.00022191,2]
[377931818,1754614260126,-1397.65,0.00022191,2]
[377931819,1754614260136,-400.0,0.00022191,2]
[377931820,1754614260147,-400.0,0.00022191,2]
[377931821,1754614260158,-400.0,0.00022191,2]
[377931822,1754614260169,-440.38,0.00022191,2]
[377931823,1754614260180,-569.3,0.00022191,2]
[377931824,1754614260190,-1429.25,0.00022191,2]
[377931825,1754614260200,-1014.96,0.00022191,2]
[377931826,1754614260210,-627.88,0.00022191,2]
[377931827,1754614260221,-1063.03,0.00022191,2]
[377931828,1754614260230,-536.63,0.00022191,2]
[377931829,1754614260240,-400.0,0.00022191,2]
[377931830,1754614260250,-400.0,0.00022191,2]
[377931831,1754614260262,-400.0,0.00022191,2]
[377931832,1754614260274,-1603.28,0.00022191,2]
[377931833,1754614260283,-400.0,0.00022191,2]
[377931834,1754614260295,-400.0,0.00022191,2]
[377931835,1754614260306,-400.0,0.00022191,2]
[377931836,1754614260317,-1163.02,0.00022191,2]
[377931837,1754614260327,-400.0,0.00022191,2]
[377931838,1754614260337,-1915.69,0.00022191,2]
[377931839,1754614260347,-481.01,0.00022191,2]
[377931840,1754614260358,-400.0,0.00022191,2]
[377931841,1754614260367,-973.9,0.00022191,2]
[377931842,1754614260377,-1809.74,0.00022191,2]
[377931843,1754614260386,-899.62,0.00022191,2]
[377931844,1754614260396,-960.68,0.00022191,2]
[377931845,1754614260406,-777.43,0.00022191,2]
[377931846,1754614260415,-400.0,0.00022191,2]
[377931847,1754614260424,-457.72765586,0.00022191,2]
[377931848,1754614260435,-715.39,0.00022191,2]
[377931849,1754614260445,-1024.44,0.00022191,2]
[377931850,1754614260455,-3151.2,0.00022191,2]
[377931851,1754614260465,-452.77,0.00022191,2]
[377931852,1754614260474,-1570.29,0.00022191,2]
[377931853,1754614260484,-565.95,0.00022191,2]
[377931854,1754614260494,-755.68,0.00022191,2]
[377931855,1754614260504,-451.58,0.00022191,2]
[377931856,1754614260515,-400.0,0.00022191,2]
[377931857,1754614260526,-786.14,0.00022191,2]
[377931858,1754614260535,-666.42,0.00022191,2]
[377931859,1754614260545,-1433.09,0.00022191,2]
[377931860,1754614260555,-1047.76,0.00022191,2]
[377931861,1754614260566,-4000.0,0.00022456,4]
[377931862,1754614260575,-3500.0,0.0002246,2]
[377931863,1754614260585,-400.0,0.00022465,2]
[377931864,1754614260594,-1357.58,0.00022465,2]
[377931865,1754614260605,-1208.7,0.00022465,2]
[377931866,1754614260615,-571.32,0.00022465,2]
[377931867,1754614260624,-722.94,0.00022465,2]
[377931868,1754614260635,-400.0,0.00022465,2]
[377931869,1754614260644,-400.0,0.00022465,2]
[377931870,1754614260654,-440.35,0.00022465,2]
[377931871,1754614260664,-400.0,0.00022465,2]
[377931872,1754614260675,-2803.03,0.00022465,2]
[377931873,1754614260685,-649.34,0.00022465,2]
[377931874,1754614260695,-1112.97,0.00022465,2]
[377931875,1754614260706,-1702.91,0.00022465,2]
[377931876,1754614260716,-400.0,0.00022465,2]
[377931877,1754614260726,-563.63,0.00022465,2]
[377931878,1754614260736,-535.07,0.00022465,2]
[377931879,1754614260746,-400.0,0.00022465,2]
[377931880,1754614260756,-412.44,0.00022465,2]
[377931881,1754614260767,-1496.19,0.00022465,2]
[377931882,1754614260777,-798.53,0.00022465,2]
[377931883,1754614260786,-636.33,0.00022465,2]
[377931884,1754614260796,-164.32870883,0.00022465,2]
[377931885,1754614260806,-400.0,0.00022465,2]
[377931886,1754614260816,-501.71,0.00022465,2]
[377931887,1754614260826,-546.96352654,0.00022465,2]
[377931888,1754614260836,-1301.51,0.00022465,2]
[377931889,1754614260845,-400.0,0.00022465,2]
[377931890,1754614260855,-400.0,0.00022465,2]
[377931891,1754614260864,-400.0,0.00022465,2]
[377931892,1754614260874,-1160.41,0.00022465,2]
[377931893,1754614260883,-502.75,0.00022465,2]
[377931894,1754614260893,-648.77,0.00022465,2]
[377931895,1754614260903,-400.0,0.00022465,2]
[377931896,1754614260913,-1559.58,0.00022465,2]
[377931897,1754614260923,-1110.84,0.00022465,2]
[377931898,1754614260933,-1082.24,0.00022465,2]
[377931899,1754614260943,-672.61,0.00022465,2]
[377931900,1754614260952,-168.06027871,0.00022465,2]
[377931901,1754614260962,-738.48,0.00022465,2]
[377931902,1754614260972,-2850.84,0.00022465,2]
[377931903,1754614260981,-1783.35,0.00022465,2]
[377931904,1754614260991,-819.83,0.00022465,2]
[377931905,1754614261000,-1144.25,0.00022465,2]
[377931906,1754614261013,-400.0,0.00022465,2]
[377931907,1754614261023,-400.0,0.00022465,2]
[377931908,1754614261033,-1207.97,0.00022465,2]
[377931909,1754614261043,-774.82,0.00022465,2]
[377931910,1754614261053,-400.0,0.00022465,2]
[377931911,1754614261063,-356.36675783,0.00022465,2]
[377931912,1754614261073,-400.0,0.00022465,2]
[377931913,1754614261083,-637.04,0.00022465,2]
[377931914,1754614261093,-809.38,0.00022465,2]
[377931915,1754614261103,-1872.75,0.00022465,2]
[377931916,1754614261113,-739.13,0.00022465,2]
[377931917,1754614261123,-518.6,0.00022465,2]
[377931918,1754614261133,-3096.84,0.00022465,2]
[377931919,1754614261142,-688.92,0.00022465,2]
[377931920,1754614261156,-724.63,0.00022465,2]
[377931921,1754614261166,-400.0,0.00022465,2]
[377931922,1754614261175,-404.25306363,0.00022465,2]
[377931923,1754614261186,-1838.62,0.00022465,2]
[377931924,1754614261199,-2478.01,0.00022465,2]
[377931925,1754614261209,-717.49,0.00022465,2]
[377931926,1754614261219,-791.17,0.00022465,2]
[377931927,1754614261231,-453.61,0.00022465,2]
[377931928,1754614261241,-743.0,0.00022465,2]
[377931929,1754614261251,-2279.55,0.00022465,2]
[377931930,1754614261262,-833.52,0.00022465,2]
[377931931,1754614261273,-1092.65,0.00022465,2]
[377931932,1754614261282,-633.66,0.00022465,2]
[377931933,1754614261292,-1210.68,0.00022465,2]
[377931934,1754614261303,-900.29,0.00022465,2]
[377931935,1754614261313,-757.08,0.00022465,2]
[377931936,1754614261324,-400.0,0.00022465,2]
[377931937,1754614261335,-400.0,0.00022465,2]
[377931938,1754614261346,-602.93,0.00022465,2]
[377931939,1754614261356,-400.0,0.00022465,2]
[377931940,1754614261366,-1933.78,0.00022465,2]
[377931941,1754614261377,-541.11,0.00022465,2]
[377931942,1754614261387,-411.24,0.00022465,2]
[377931943,1754614261396,-400.0,0.00022465,2]
[377931944,1754614261405,-400.0,0.00022465,2]
[377931945,1754614261415,-2866.87,0.00022465,2]
[377931946,1754614261425,-1218.55,0.00022465,2]
[377931947,1754614261435,-400.0,0.00022465,2]
[377931948,1754614261445,-400.0,0.00022465,2]
[377931949,1754614261455,-1023.23,0.00022465,2]
[377931950,1754614261465,-400.0,0.00022465,2]
[377931951,1754614261474,-995.05,0.00022465,2]
[377931952,1754614261484,-1397.65,0.00022465,2]
[377931953,1754614261494,-400.0,0.00022465,2]
[377931954,1754614261505,-400.0,0.00022465,2]
[377931955,1754614261517,-400.0,0.00022465,2]
[377931956,1754614261526,-440.38,0.00022465,2]
[377931957,1754614261536,-569.3,0.00022465,2]
[377931958,1754614261546,-1429.25,0.00022465,2]
[377931959,1754614261556,-1014.96,0.00022465,2]
[377931960,1754614261567,-627.88,0.00022465,2]
[377931961,1754614261577,-1063.03,0.00022465,2]
[377931962,1754614261587,-536.63,0.00022465,2]
[377931963,1754614261669,-400.0,0.00022465,2]
[377931964,1754614261714,-400.0,0.00022465,2]
[377931965,1754614261724,-400.0,0.00022465,2]
[377931966,1754614261738,-1603.28,0.00022465,2]
[377931967,1754614261753,-400.0,0.00022465,2]
[377931968,1754614261767,-400.0,0.00022465,2]
[377931969,1754614261776,-400.0,0.00022465,2]
[377931970,1754614261787,-1163.02,0.00022465,2]
[377931971,1754614261797,-400.0,0.00022465,2]
[377931972,1754614261807,-1915.69,0.00022465,2]
[377931973,1754614261817,-481.01,0.00022465,2]
[377931974,1754614261827,-400.0,0.00022465,2]
[377931975,1754614261837,-973.9,0.00022465,2]
[377931976,1754614261847,-1809.74,0.00022465,2]
[377931977,1754614261858,-899.62,0.00022465,2]
[377931978,1754614261867,-960.68,0.00022465,2]
[377931979,1754614261878,-777.43,0.00022465,2]
[377931980,1754614261887,-400.0,0.00022465,2]
[377931981,1754614261898,-715.39,0.00022465,2]
[377931982,1754614261909,-1024.44,0.00022465,2]
[377931983,1754614261919,-3151.2,0.00022465,2]
[377931984,1754614261929,-452.77,0.00022465,2]
[377931985,1754614261939,-1570.29,0.00022465,2]
[377931986,1754614261951,-565.95,0.00022465,2]
[377931987,1754614261962,-755.68,0.00022465,2]
[377931988,1754614261972,-451.58,0.00022465,2]
[377931989,1754614261981,-545.59243145,0.00022465,2]
[377931990,1754614261991,-786.14,0.00022465,2]
[377931991,1754614262001,-666.42,0.00022465,2]
[377931992,1754614262012,-1433.09,0.00022465,2]
[377931993,1754614262024,-1047.76,0.00022465,2]
[377931994,1754614262035,-168.0,0.00022698,2]
[377931995,1754614262045,-152.14,0.00022739,2]
[377931996,1754614262055,-150.58,0.00022739,2]
[377931997,1754614262065,-151.76,0.00022739,2]
[377931998,1754614262075,-400.0,0.00022739,2]
[377931999,1754614262085,-1357.58,0.00022739,2]
[377932000,1754614262095,-1208.7,0.00022739,2]
[377932001,1754614262105,-571.32,0.00022739,2]
[377932002,1754614262115,-722.94,0.00022739,2]
[377932003,1754614262125,-400.0,0.00022739,2]
[377932004,1754614262135,-400.0,0.00022739,2]
[377932005,1754614262145,-440.35,0.00022739,2]
[377932006,1754614262156,-400.0,0.00022739,2]
[377932007,1754614262167,-2803.03,0.00022739,2]
[377932008,1754614262179,-649.34,0.00022739,2]
[377932009,1754614262190,-1112.97,0.00022739,2]
[377932010,1754614262201,-1702.91,0.00022739,2]
[377932011,1754614262212,-400.0,0.00022739,2]
[377932012,1754614262223,-563.63,0.00022739,2]
[377932013,1754614262233,-535.07,0.00022739,2]
[377932014,1754614262243,-400.0,0.00022739,2]
[377932015,1754614262254,-412.44,0.00022739,2]
[377932016,1754614262267,-1496.19,0.00022739,2]
[377932017,1754614262278,-798.53,0.00022739,2]
[377932018,1754614262288,-636.33,0.00022739,2]
[377932019,1754614262298,-400.0,0.00022739,2]
[377932020,1754614262309,-501.71,0.00022739,2]
[377932021,1754614262319,-1301.51,0.00022739,2]
[377932022,1754614262330,-400.0,0.00022739,2]
[377932023,1754614262340,-400.0,0.00022739,2]
[377932024,1754614262351,-400.0,0.00022739,2]
[377932025,1754614262361,-1160.41,0.00022739,2]
[377932026,1754614262371,-502.75,0.00022739,2]
[377932027,1754614262381,-648.77,0.00022739,2]
[377932028,1754614262391,-400.0,0.00022739,2]
[377932029,1754614262401,-1559.58,0.00022739,2]
[377932030,1754614262411,-1110.84,0.00022739,2]
[377932031,1754614262421,-1082.24,0.00022739,2]
[377932032,1754614262431,-672.61,0.00022739,2]
[377932033,1754614262441,-738.48,0.00022739,2]
[377932034,1754614262451,-2850.84,0.00022739,2]
[377932035,1754614262462,-1783.35,0.00022739,2]
[377932036,1754614262472,-819.83,0.00022739,2]
[377932037,1754614262482,-1144.25,0.00022739,2]
[377932038,1754614262492,-400.0,0.00022739,2]
[377932039,1754614262502,-400.0,0.00022739,2]
[377932040,1754614262512,-1207.97,0.00022739,2]
[377932041,1754614262523,-774.82,0.00022739,2]
[377932042,1754614262533,-400.0,0.00022739,2]
[377932043,1754614262545,-400.0,0.00022739,2]
[377932044,1754614262556,-637.04,0.00022739,2]
[377932045,1754614262567,-809.38,0.00022739,2]
[377932046,1754614262577,-1872.75,0.00022739,2]
[377932047,1754614262587,-739.13,0.00022739,2]
[377932048,1754614262597,-518.6,0.00022739,2]
[377932049,1754614262609,-3096.84,0.00022739,2]
[377932050,1754614262619,-688.92,0.00022739,2]
[377932051,1754614262629,-724.63,0.00022739,2]
[377932052,1754614262639,-400.0,0.00022739,2]
[377932053,1754614262649,-1838.62,0.00022739,2]
[377932054,1754614262658,-2478.01,0.00022739,2]
[377932055,1754614262668,-717.49,0.00022739,2]
[377932056,1754614262678,-791.17,0.00022739,2]
[377932057,1754614262687,-453.61,0.00022739,2]
[377932058,1754614262697,-743.0,0.00022739,2]
[377932059,1754614262707,-2279.55,0.00022739,2]
[377932060,1754614262718,-833.52,0.00022739,2]
[377932061,1754614262728,-1092.65,0.00022739,2]
[377932062,1754614262738,-633.66,0.00022739,2]
[377932063,1754614262748,-1210.68,0.00022739,2]
[377932064,1754614262758,-900.29,0.00022739,2]
[377932065,1754614262770,-757.08,0.00022739,2]
[377932066,1754614262781,-400.0,0.00022739,2]
[377932067,1754614262792,-400.0,0.00022739,2]
[377932068,1754614262804,-602.93,0.00022739,2]
[377932069,1754614262821,-400.0,0.00022739,2]
[377932070,1754614262832,-1933.78,0.00022739,2]
[377932071,1754614262843,-541.11,0.00022739,2]
[377932072,1754614262854,-411.24,0.00022739,2]
[377932073,1754614262865,-293.25169871,0.00022739,2]
[377932074,1754614262876,-400.0,0.00022739,2]
[377932075,1754614262886,-2866.87,0.00022739,2]
[377932076,1754614262897,-1218.55,0.00022739,2]
[377932077,1754614262907,-400.0,0.00022739,2]
[377932078,1754614262919,-400.0,0.00022739,2]
[377932079,1754614262930,-1023.23,0.00022739,2]
[377932080,1754614262940,-400.0,0.00022739,2]
[377932081,1754614262951,-995.05,0.00022739,2]
[377932082,1754614262963,-1397.65,0.00022739,2]
[377932083,1754614262974,-400.0,0.00022739,2]
[377932084,1754614262985,-400.0,0.00022739,2]
[377932085,1754614262997,-400.0,0.00022739,2]
[377932086,1754614263010,-440.38,0.00022739,2]
[377932087,1754614263025,-569.3,0.00022739,2]
[377932088,1754614263036,-1429.25,0.00022739,2]
[377932089,1754614263047,-1014.96,0.00022739,2]
[377932090,1754614263059,-627.88,0.00022739,2]
[377932091,1754614263081,-1063.03,0.00022739,2]
[377932092,1754614263099,-536.63,0.00022739,2]
[377932093,1754614263112,-400.0,0.00022739,2]
[377932094,1754614263124,-400.0,0.00022739,2]
[377932095,1754614263137,-400.0,0.00022739,2]
[377932096,1754614263151,-1603.28,0.00022739,2]
[377932097,1754614263172,-400.0,0.00022739,2]
[377932098,1754614263188,-400.0,0.00022739,2]
[377932099,1754614263201,-400.0,0.00022739,2]
[377932100,1754614263213,-1163.02,0.00022739,2]
[377932101,1754614263224,-400.0,0.00022739,2]
[377932102,1754614263235,-1915.69,0.00022739,2]
[377932103,1754614263247,-481.01,0.00022739,2]
[377932104,1754614263259,-400.0,0.00022739,2]
[377932105,1754614263272,-973.9,0.00022739,2]
[377932106,1754614263282,-1809.74,0.00022739,2]
[377932107,1754614263293,-899.62,0.00022739,2]
[377932108,1754614263303,-960.68,0.00022739,2]
[377932109,1754614263314,-777.43,0.00022739,2]
[377932110,1754614263324,-400.0,0.00022739,2]
[377932111,1754614263335,-715.39,0.00022739,2]
[377932112,1754614263345,-3151.2,0.00022739,2]
[377932113,1754614263355,-1024.44,0.00022739,2]
[377932114,1754614263365,-452.77,0.00022739,2]
[377932115,1754614263376,-1570.29,0.00022739,2]
[377932116,1754614263386,-565.95,0.00022739,2]
[377932117,1754614263396,-755.68,0.00022739,2]
[377932118,1754614263406,-451.58,0.00022739,2]
[377932119,1754614263417,-786.14,0.00022739,2]
[377932120,1754614263427,-666.42,0.00022739,2]
[377932121,1754614263437,-1433.09,0.00022739,2]
[377932122,1754614263448,-1047.76,0.00022739,2]
[377932123,1754614263458,-1000.0,0.0002291,2]
[377932124,1754614263468,-150.0,0.00023,2]
[377932125,1754614263479,-615.0,0.00023,7]
[377932126,1754614263489,-4000.0,0.00023008,2]
[377932127,1754614263500,-400.0,0.00023013,2]
[377932128,1754614263510,-1357.58,0.00023013,2]
[377932129,1754614263523,-1208.7,0.00023013,2]
[377932130,1754614263533,-571.32,0.00023013,2]
[377932131,1754614263543,-722.94,0.00023013,2]
[377932132,1754614263553,-400.0,0.00023013,2]
[377932133,1754614263563,-400.0,0.00023013,2]
[377932134,1754614263573,-440.35,0.00023013,2]
[377932135,1754614263583,-400.0,0.00023013,2]
[377932136,1754614263593,-2803.03,0.00023013,2]
[377932137,1754614263604,-649.34,0.00023013,2]
[377932138,1754614263614,-1112.97,0.00023013,2]
[377932139,1754614263624,-1702.91,0.00023013,2]
[377932140,1754614263635,-400.0,0.00023013,2]
[377932141,1754614263645,-563.63,0.00023013,2]
[377932142,1754614263655,-400.0,0.00023013,2]
[377932143,1754614263665,-535.07,0.00023013,2]
[377932144,1754614263675,-412.44,0.00023013,2]
[377932145,1754614263685,-1496.19,0.00023013,2]
[377932146,1754614263695,-798.53,0.00023013,2]
[377932147,1754614263705,-636.33,0.00023013,2]
[377932148,1754614263716,-400.0,0.00023013,2]
[377932149,1754614263726,-501.71,0.00023013,2]
[377932150,1754614263737,-1301.51,0.00023013,2]
[377932151,1754614263747,-400.0,0.00023013,2]
[377932152,1754614263758,-400.0,0.00023013,2]
[377932153,1754614263770,-400.0,0.00023013,2]
[377932154,1754614263780,-1160.41,0.00023013,2]
[377932155,1754614263790,-502.75,0.00023013,2]
[377932156,1754614263801,-648.77,0.00023013,2]
[377932157,1754614263811,-400.0,0.00023013,2]
[377932158,1754614263821,-1559.58,0.00023013,2]
[377932159,1754614263831,-1110.84,0.00023013,2]
[377932160,1754614263842,-1082.24,0.00023013,2]
[377932161,1754614263852,-672.61,0.00023013,2]
[377932162,1754614263863,-738.48,0.00023013,2]
[377932163,1754614263874,-2850.84,0.00023013,2]
[377932164,1754614263885,-1783.35,0.00023013,2]
[377932165,1754614263895,-819.83,0.00023013,2]
[377932166,1754614263905,-1144.25,0.00023013,2]
[377932167,1754614263915,-400.0,0.00023013,2]
[377932168,1754614263927,-400.0,0.00023013,2]
[377932169,1754614263937,-1207.97,0.00023013,2]
[377932170,1754614263947,-774.82,0.00023013,2]
[377932171,1754614263957,-400.0,0.00023013,2]
[377932172,1754614264214,-400.0,0.00023013,2]
[377932173,1754614264226,-637.04,0.00023013,2]
[377932174,1754614264235,-809.38,0.00023013,2]
[377932175,1754614264247,-1872.75,0.00023013,2]
[377932176,1754614264257,-739.13,0.00023013,2]
[377932177,1754614264269,-518.6,0.00023013,2]
[377932178,1754614264279,-3096.84,0.00023013,2]
[377932179,1754614264290,-688.92,0.00023013,2]
[377932180,1754614264299,-724.63,0.00023013,2]
[377932181,1754614264309,-400.0,0.00023013,2]
[377932182,1754614264319,-1838.62,0.00023013,2]
[377932183,1754614264339,-2478.01,0.00023013,2]
[377932184,1754614264351,-717.49,0.00023013,2]
[377932185,1754614264362,-791.17,0.00023013,2]
[377932186,1754614264373,-453.61,0.00023013,2]
[377932187,1754614264383,-743.0,0.00023013,2]
[377932188,1754614264395,-2279.55,0.00023013,2]
[377932189,1754614264405,-833.52,0.00023013,2]
[377932190,1754614264417,-1092.65,0.00023013,2]
[377932191,1754614264427,-633.66,0.00023013,2]
[377932192,1754614264437,-1210.68,0.00023013,2]
[377932193,1754614264448,-900.29,0.00023013,2]
[377932194,1754614264458,-400.0,0.00023013,2]
[377932195,1754614264469,-757.08,0.00023013,2]
[377932196,1754614264479,-400.0,0.00023013,2]
[377932197,1754614264490,-602.93,0.00023013,2]
[377932198,1754614264501,-400.0,0.00023013,2]
[377932199,1754614264512,-1933.78,0.00023013,2]
[377932200,1754614264523,-541.11,0.00023013,2]
[377932201,1754614264534,-411.24,0.00023013,2]
[377932202,1754614264545,-512.8859712,0.00023013,2]
[377932203,1754614264555,-2866.87,0.00023013,2]
[377932204,1754614264565,-1218.55,0.00023013,2]
[377932205,1754614264575,-400.0,0.00023013,2]
[377932206,1754614264585,-400.0,0.00023013,2]
[377932207,1754614264595,-1023.23,0.00023013,2]
[377932208,1754614264606,-400.0,0.00023013,2]
[377932209,1754614264617,-995.05,0.00023013,2]
[377932210,1754614264627,-1397.65,0.00023013,2]
[377932211,1754614264637,-400.0,0.00023013,2]
[377932212,1754614264647,-400.0,0.00023013,2]
[377932213,1754614264657,-440.38,0.00023013,2]
[377932214,1754614264667,-569.3,0.00023013,2]
[377932215,1754614264677,-1429.25,0.00023013,2]
[377932216,1754614264687,-1014.96,0.00023013,2]
[377932217,1754614264698,-627.88,0.00023013,2]
[377932218,1754614264708,-1063.03,0.00023013,2]
[377932219,1754614264718,-536.63,0.00023013,2]
[377932220,1754614264729,-400.0,0.00023013,2]
[377932221,1754614264738,-367.19069659,0.00023013,2]
[377932222,1754614264748,-400.0,0.00023013,2]
[377932223,1754614264759,-1603.28,0.00023013,2]
[377932224,1754614264769,-400.0,0.00023013,2]
[377932225,1754614264779,-400.0,0.00023013,2]
[377932226,1754614264790,-400.0,0.00023013,2]
[377932227,1754614264800,-1163.02,0.00023013,2]
[377932228,1754614264810,-400.0,0.00023013,2]
[377932229,1754614264819,-1915.69,0.00023013,2]
[377932230,1754614264829,-481.01,0.00023013,2]
[377932231,1754614264839,-400.0,0.00023013,2]
[377932232,1754614264849,-973.9,0.00023013,2]
[377932233,1754614264859,-1809.74,0.00023013,2]
[377932234,1754614264869,-899.62,0.00023013,2]
[377932235,1754614264879,-960.68,0.00023013,2]
[377932236,1754614264889,-777.43,0.00023013,2]
[377932237,1754614264899,-400.0,0.00023013,2]
[377932238,1754614264909,-715.39,0.00023013,2]
[377932239,1754614264920,-3151.2,0.00023013,2]
[377932240,1754614264930,-1024.44,0.00023013,2]
[377932241,1754614264944,-452.77,0.00023013,2]
[377932242,1754614264954,-1570.29,0.00023013,2]
[377932243,1754614264965,-565.95,0.00023013,2]
[377932244,1754614264975,-755.68,0.00023013,2]